fUST/lending_fUST_20250218
["ID","MTS","AMOUNT","RATE_DAILY","PERIOD"]
[353423281,1739823047252,-679.97,0.00013945,2]
[353423282,1739823047262,-500.0,0.00013945,2]
[353423283,1739823047272,-281.17,0.00013945,2]
[353423284,1739823047282,-500.0,0.00013945,2]
[353423285,1739823047292,-839.18,0.00013945,2]
[353423286,1739823047302,-500.0,0.00013945,2]
[353423287,1739823047311,-500.0,0.00013945,2]
[353423288,1739823047321,-500.0,0.00013945,2]
[353423289,1739823047331,-500.0,0.00013945,2]
[353423290,1739823047340,-500.0,0.00013945,2]
[353423291,1739823047350,-500.0,0.00013945,2]
[353423292,1739823047359,-3537.41,0.00013945,2]
[353423293,1739823047368,-500.0,0.00013945,2]
[353423294,1739823047378,-500.0,0.00013945,2]
[353423295,1739823047387,-1804.24,0.00013945,2]
[353423296,1739823047396,-500.0,0.00013945,2]
[353423297,1739823047405,-500.0,0.00013945,2]
[353423298,1739823047415,-500.0,0.00013945,2]
[353423299,1739823047424,-500.0,0.00013945,2]
[353423300,1739823047434,-500.0,0.00013945,2]
[353423302,1739823047443,-500.0,0.00013945,2]
[353423304,1739823047453,-680.55,0.00013945,2]
[353423305,1739823047462,-513.3,0.00013945,2]
[353423306,1739823047473,-500.0,0.00013945,2]
[353423308,1739823047484,-500.0,0.00013945,2]
[353423310,1739823047493,-500.0,0.00013945,2]
[353423311,1739823047502,-500.0,0.00013945,2]
[353423313,1739823047512,-507.95,0.00013945,2]
[353423315,1739823047521,-174.69,0.00013945,2]
[353423317,1739823047531,-633.58,0.00013945,2]
[353423319,1739823047541,-9462.2,0.00013945,2]
[353423321,1739823047550,-855.8,0.00013945,2]
[353423322,1739823047560,-500.0,0.00013945,2]
[353423324,1739823047569,-500.0,0.00013945,2]
[353423325,1739823047578,-500.0,0.00013945,2]
[353423327,1739823047587,-500.0,0.00013945,2]
[353423330,1739823047608,-500.0,0.00013945,2]
[353423332,1739823047618,-500.0,0.00013945,2]
[353423334,1739823047628,-500.0,0.00013945,2]
[353423336,1739823047637,-500.0,0.00013945,2]
[353423338,1739823047647,-500.0,0.00013945,2]
[353423340,1739823047657,-180.80575105,0.00013968,2]
[353423341,1739823047667,-643.71603217,0.0001398,2]
[353423342,1739823047676,-982.05507013,0.00013988,2]
[353423343,1739823047686,-982.05507013,0.0001399,2]
[353423344,1739823047696,-982.05507013,0.00013992,2]
[353423345,1739823047706,-463.75026563,0.00014027,2]
[353423346,1739823047854,-36.24973437,0.00014027,2]
[353423347,1739823047865,-414.1,0.00014027,2]
[353423348,1739823047874,-500.0,0.00014027,2]
[353423349,1739823047884,-424.88,0.00014027,2]
[353423350,1739823047893,-500.0,0.00014027,2]
[353423351,1739823047903,-281.92,0.00014027,2]
[353423352,1739823047913,-378.63050535,0.00014027,2]
[353423353,1739823047923,-500.0,0.00014027,2]
[353423354,1739823047932,-500.0,0.00014027,2]
[353423355,1739823047942,-318.87,0.00014027,2]
[353423356,1739823047957,-500.0,0.00014027,2]
[353423357,1739823047967,-500.0,0.00014027,2]
[353423358,1739823047982,-500.0,0.00014027,2]
[353423359,1739823047993,-194.21,0.00014027,2]
[353423360,1739823048003,-364.68,0.00014027,2]
[353423361,1739823048013,-305.78,0.00014027,2]
[353423362,1739823048024,-500.0,0.00014027,2]
[353423363,1739823048034,-516.65,0.00014027,2]
[353423365,1739823048044,-500.0,0.00014027,2]
[353423367,1739823048056,-500.0,0.00014027,2]
[353423369,1739823048067,-500.0,0.00014027,2]
[353423371,1739823048076,-840.82,0.00014027,2]
[353423373,1739823048088,-285.47517297,0.00014027,2]
[353423388,1739823048254,-3076.96482703,0.00014027,2]
[353423390,1739823048264,-500.0,0.00014027,2]
[353423392,1739823048274,-500.0,0.00014027,2]
[353423394,1739823048283,-500.0,0.00014027,2]
[353423396,1739823048293,-184.95740711,0.00014027,2]
[353423401,1739823048331,-595.1,0.00013698,2]
[353423403,1739823048341,-500.0,0.00013698,2]
[353423405,1739823048350,-62.24769832,0.00013863,2]
[353423407,1739823048363,-511.76258966,0.00013863,2]
[353423409,1739823048372,-500.0,0.00013955,2]
[353423411,1739823048383,-315.04259289,0.00014027,2]
[353423413,1739823048391,-500.0,0.00014027,2]
[353423415,1739823048402,-500.0,0.00014027,2]
[353423417,1739823048412,-500.0,0.00014027,2]
[353423419,1739823048422,-500.0,0.00014027,2]
[353423421,1739823048432,-500.0,0.00014027,2]
[353423423,1739823048447,-173.87733516,0.00014027,2]
[353423426,1739823048459,-326.12266484,0.00014027,2]
[353423428,1739823048470,-500.0,0.00014027,2]
[353423430,1739823048481,-500.0,0.00014027,2]
[353423432,1739823048491,-500.0,0.00014027,2]
[353423434,1739823048501,-500.0,0.00014027,2]
[353423436,1739823048517,-500.0,0.00014027,2]
[353423438,1739823048526,-500.0,0.00014027,2]
[353423440,1739823048537,-503.03697168,0.00014027,2]
[353423442,1739823048546,-500.0,0.00014027,2]
[353423444,1739823048556,-500.0,0.00014027,2]
[353423446,1739823048565,-500.0,0.00014027,2]
[353423448,1739823048576,-500.0,0.00014027,2]
[353423450,1739823048586,-500.0,0.00014027,2]
[353423452,1739823048597,-679.97,0.00014027,2]
[353423454,1739823048607,-273.66,0.00014027,2]
[353423456,1739823048618,-839.18,0.00014027,2]
[353423458,1739823048629,-500.0,0.00014027,2]
[353423460,1739823048639,-500.0,0.00014027,2]
[353423462,1739823048649,-500.0,0.00014027,2]
[353423464,1739823048659,-500.0,0.00014027,2]
[353423466,1739823048670,-500.0,0.00014027,2]
[353423468,1739823048679,-500.0,0.00014027,2]
[353423470,1739823048689,-3537.41,0.00014027,2]
[353423472,1739823048699,-367.72115366,0.00014027,2]
[353423474,1739823048710,-500.0,0.00014027,2]
[353423476,1739823048720,-1804.24,0.00014027,2]
[353423478,1739823048730,-500.0,0.00014027,2]
[353423480,1739823048739,-500.0,0.00014027,2]
[353423482,1739823048749,-500.0,0.00014027,2]
[353423484,1739823048759,-500.0,0.00014027,2]
[353423486,1739823048770,-342.39527682,0.00014027,2]
[353423488,1739823048783,-157.60472318,0.00014027,2]
[353423490,1739823048793,-680.55,0.00014027,2]
[353423492,1739823048803,-513.3,0.00014027,2]
[353423494,1739823048813,-500.0,0.00014027,2]
[353423496,1739823048823,-500.0,0.00014027,2]
[353423498,1739823048833,-500.0,0.00014027,2]
[353423500,1739823048843,-500.0,0.00014027,2]
[353423502,1739823048854,-507.95,0.00014027,2]
[353423504,1739823048864,-633.58,0.00014027,2]
[353423506,1739823048875,-9462.2,0.00014027,2]
[353423508,1739823048886,-855.8,0.00014027,2]
[353423510,1739823048896,-500.0,0.00014027,2]
[353423513,1739823048907,-500.0,0.00014027,2]
[353423515,1739823048916,-500.0,0.00014027,2]
[353423517,1739823048927,-500.0,0.00014027,2]
[353423519,1739823048936,-500.0,0.00014027,2]
[353423521,1739823048947,-500.0,0.00014027,2]
[353423523,1739823048957,-500.0,0.00014027,2]
[353423525,1739823048968,-643.71603217,0.0001408,2]
[353423527,1739823048981,-180.80575105,0.00014091,2]
[353423529,1739823048992,-521.54,0.00014109,2]
[353423531,1739823049003,-500.0,0.00014109,2]
[353423533,1739823049014,-300.57,0.00014109,2]
[353423535,1739823049025,-438.56229704,0.00014109,2]
[353423537,1739823049036,-282.18,0.00014109,2]
[353423539,1739823049047,-500.0,0.00014109,2]
[353423541,1739823049060,-500.0,0.00014109,2]
[353423543,1739823049070,-438.78,0.00014109,2]
[353423545,1739823049079,-500.0,0.00014109,2]
[353423547,1739823049089,-500.0,0.00014109,2]
[353423549,1739823049099,-840.82,0.00014109,2]
[353423551,1739823049109,-3362.44,0.00014109,2]
[353423553,1739823049119,-500.0,0.00014109,2]
[353423555,1739823049129,-500.0,0.00014109,2]
[353423557,1739823049138,-500.0,0.00014109,2]
[353423559,1739823049148,-500.0,0.00014109,2]
[353423561,1739823049159,-500.0,0.00014109,2]
[353423563,1739823049169,-500.0,0.00014109,2]
[353423565,1739823049180,-500.0,0.00014109,2]
[353423567,1739823049190,-500.0,0.00014109,2]
[353423569,1739823049200,-500.0,0.00014109,2]
[353423571,1739823049210,-500.0,0.00014109,2]
[353423573,1739823049220,-500.0,0.00014109,2]
[353423575,1739823049230,-562.49,0.00014109,2]
[353423577,1739823049240,-500.0,0.00014109,2]
[353423579,1739823049250,-500.0,0.00014109,2]
[353423582,1739823049260,-500.0,0.00014109,2]
[353423584,1739823049270,-500.0,0.00014109,2]
[353423586,1739823049280,-500.0,0.00014109,2]
[353423588,1739823049290,-500.0,0.00014109,2]
[353423590,1739823049301,-500.0,0.00014109,2]
[353423592,1739823049310,-500.0,0.00014109,2]
[353423594,1739823049320,-500.0,0.00014109,2]
[353423596,1739823049331,-679.97,0.00014109,2]
[353423598,1739823049341,-839.18,0.00014109,2]
[353423600,1739823049350,-500.0,0.00014109,2]
[353423602,1739823049361,-500.0,0.00014109,2]
[353423604,1739823049371,-313.16,0.00014109,2]
[353423606,1739823049382,-500.0,0.00014109,2]
[353423607,1739823049391,-153.17,0.00014109,2]
[353423608,1739823049401,-544.76,0.00014109,2]
[353423609,1739823049411,-3537.41,0.00014109,2]
[353423610,1739823049420,-500.0,0.00014109,2]
[353423611,1739823049430,-1804.24,0.00014109,2]
[353423612,1739823049440,-500.0,0.00014109,2]
[353423614,1739823049451,-500.0,0.00014109,2]
[353423616,1739823049461,-500.0,0.00014109,2]
[353423618,1739823049472,-500.0,0.00014109,2]
[353423620,1739823049482,-500.0,0.00014109,2]
[353423622,1739823049493,-680.55,0.00014109,2]
[353423624,1739823049503,-513.3,0.00014109,2]
[353423626,1739823049513,-500.0,0.00014109,2]
[353423628,1739823049523,-500.0,0.00014109,2]
[353423630,1739823049533,-500.0,0.00014109,2]
[353423632,1739823049542,-500.0,0.00014109,2]
[353423645,1739823049648,-507.95,0.00014109,2]
[353423647,1739823049659,-633.58,0.00014109,2]
[353423649,1739823049669,-9462.2,0.00014109,2]
[353423651,1739823049680,-855.8,0.00014109,2]
[353423653,1739823049689,-500.0,0.00014109,2]
[353423655,1739823049699,-500.0,0.00014109,2]
[353423657,1739823049709,-500.0,0.00014109,2]
[353423659,1739823049718,-500.0,0.00014109,2]
[353423661,1739823049728,-500.0,0.00014109,2]
[353423664,1739823049739,-500.0,0.00014109,2]
[353423666,1739823049749,-500.0,0.00014109,2]
[353423668,1739823049759,-710.1913072,0.00014164,2]
[353423670,1739823049768,-643.71603217,0.0001418,2]
[353423672,1739823049777,-500.0,0.00014191,2]
[353423674,1739823049786,-262.69,0.00014191,2]
[353423676,1739823049796,-644.73,0.00014191,2]
[353423678,1739823049805,-500.0,0.00014191,2]
[353423680,1739823049814,-500.0,0.00014191,2]
[353423682,1739823049824,-840.82,0.00014191,2]
[353423684,1739823049833,-3362.44,0.00014191,2]
[353423686,1739823049842,-385.9,0.00014191,2]
[353423688,1739823049852,-500.0,0.00014191,2]
[353423690,1739823049861,-500.0,0.00014191,2]
[353423692,1739823049871,-500.0,0.00014191,2]
[353423694,1739823049880,-431.18,0.00014191,2]
[353423696,1739823049889,-500.0,0.00014191,2]
[353423698,1739823049900,-473.57,0.00014191,2]
[353423700,1739823049910,-500.0,0.00014191,2]
[353423702,1739823049920,-500.0,0.00014191,2]
[353423704,1739823049930,-500.0,0.00014191,2]
[353423706,1739823049939,-500.0,0.00014191,2]
[353423708,1739823049949,-500.0,0.00014191,2]
[353423710,1739823049959,-500.0,0.00014191,2]
[353423712,1739823049970,-679.97,0.00014191,2]
[353423714,1739823049981,-839.18,0.00014191,2]
[353423716,1739823049990,-500.0,0.00014191,2]
[353423718,1739823050000,-255.99,0.00014191,2]
[353423720,1739823050011,-2632.56252451,0.00014191,2]
[353423722,1739823050024,-904.84747549,0.00014191,2]
[353423724,1739823050035,-500.0,0.00014191,2]
[353423727,1739823050046,-1804.24,0.00014191,2]
[353423729,1739823050056,-214.93,0.00014191,2]
[353423731,1739823050066,-500.0,0.00014191,2]
[353423733,1739823050075,-500.0,0.00014191,2]
[353423735,1739823050084,-680.55,0.00014191,2]
[353423737,1739823050094,-513.3,0.00014191,2]
[353423739,1739823050103,-572.8,0.00014191,2]
[353423741,1739823050112,-500.0,0.00014191,2]
[353423743,1739823050122,-500.0,0.00014191,2]
[353423745,1739823050132,-500.0,0.00014191,2]
[353423746,1739823050141,-507.95,0.00014191,2]
[353423748,1739823050151,-633.58,0.00014191,2]
[353423750,1739823050160,-9462.2,0.00014191,2]
[353423752,1739823050169,-855.8,0.00014191,2]
[353423754,1739823050178,-500.0,0.00014191,2]
[353423756,1739823050187,-500.0,0.00014191,2]
[353423758,1739823050197,-643.68,0.00014191,2]
[353423760,1739823050206,-500.0,0.00014191,2]
[353423763,1739823050216,-500.0,0.00014191,2]
[353423765,1739823050225,-500.0,0.00014191,2]
[353423767,1739823050236,-500.0,0.00014191,2]
[353423769,1739823050245,-269.32184395,0.00014273,2]
[353423799,1739823050523,-257.33815605,0.00014273,2]
[353423801,1739823050533,-457.53215837,0.00014273,2]
[353423804,1739823050545,-42.46784163,0.00014273,2]
[353423806,1739823050555,-500.0,0.00014273,2]
[353423808,1739823050565,-810.17770733,0.00014273,2]
[353423831,1739823050771,-518.04568518,0.00013677,2]
[353423833,1739823050782,-518.04568518,0.00013677,2]
[353423835,1739823050792,-518.04568518,0.00013677,2]
[353423838,1739823050802,-518.04568518,0.00013677,2]
[353423840,1739823050811,-518.04568518,0.00013677,2]
[353423842,1739823050821,-518.04568518,0.00013677,2]
[353423844,1739823050831,-518.04568518,0.00013677,2]
[353423846,1739823050840,-518.04568518,0.00013677,2]
[353423848,1739823050849,-518.04568518,0.00013677,2]
[353423850,1739823050858,-518.04568518,0.00013677,2]
[353423852,1739823050867,-518.04568518,0.00013677,2]
[353423854,1739823050876,-518.04568518,0.00013677,2]
[353423856,1739823050886,-518.04568518,0.00013677,2]
[353423858,1739823050895,-518.04568518,0.00013677,2]
[353423860,1739823050904,-518.04568518,0.00013677,2]
[353423861,1739823050914,-518.04568518,0.00013677,2]
[353423863,1739823050923,-518.04568518,0.00013677,2]
[353423865,1739823050933,-518.04568518,0.00013677,2]
[353423867,1739823050942,-518.04568518,0.00013677,2]
[353423869,1739823050952,-518.04568518,0.00013677,2]
[353423871,1739823050961,-518.04568518,0.00013677,2]
[353423873,1739823050973,-518.04568518,0.00013677,2]
[353423875,1739823050983,-518.04568518,0.00013677,2]
[353423877,1739823050992,-518.04568518,0.00013677,2]
[353423879,1739823051001,-518.04568518,0.00013677,2]
[353423881,1739823051011,-518.04568518,0.00013677,2]
[353423883,1739823051022,-518.04568518,0.00013677,2]
[353423885,1739823051032,-518.04568518,0.00013677,2]
[353423887,1739823051041,-518.04568518,0.00013677,2]
[353423889,1739823051054,-518.04568518,0.00013677,2]
[353423891,1739823051064,-518.04568518,0.00013677,2]
[353423893,1739823051073,-518.04568518,0.00013677,2]
[353423895,1739823051083,-518.04568518,0.00013677,2]
[353423897,1739823051092,-518.04568518,0.00013677,2]
[353423899,1739823051101,-518.04568518,0.00013677,2]
[353423901,1739823051112,-30.64229267,0.00014273,2]
[353423912,1739823051198,-3362.44,0.00014273,2]
[353423914,1739823051209,-500.0,0.00014273,2]
[353423916,1739823051218,-500.0,0.00014273,2]
[353423918,1739823051228,-500.0,0.00014273,2]
[353423920,1739823051237,-500.0,0.00014273,2]
[353423922,1739823051247,-500.0,0.00014273,2]
[353423924,1739823051256,-500.0,0.00014273,2]
[353423926,1739823051265,-500.0,0.00014273,2]
[353423928,1739823051275,-500.0,0.00014273,2]
[353423930,1739823051284,-500.0,0.00014273,2]
[353423932,1739823051294,-679.97,0.00014273,2]
[353423934,1739823051304,-839.18,0.00014273,2]
[353423936,1739823051315,-500.0,0.00014273,2]
[353423938,1739823051324,-3537.41,0.00014273,2]
[353423940,1739823051333,-500.0,0.00014273,2]
[353423942,1739823051343,-1804.24,0.00014273,2]
[353423944,1739823051354,-500.0,0.00014273,2]
[353423946,1739823051363,-500.0,0.00014273,2]
[353423948,1739823051373,-680.55,0.00014273,2]
[353423950,1739823051383,-513.3,0.00014273,2]
[353423952,1739823051392,-500.0,0.00014273,2]
[353423954,1739823051401,-500.0,0.00014273,2]
[353423956,1739823051410,-500.0,0.00014273,2]
[353423958,1739823051419,-507.95,0.00014273,2]
[353423960,1739823051429,-633.58,0.00014273,2]
[353423962,1739823051438,-9462.2,0.00014273,2]
[353423964,1739823051447,-855.8,0.00014273,2]
[353423966,1739823051457,-500.0,0.00014273,2]
[353423968,1739823051466,-500.0,0.00014273,2]
[353423970,1739823051476,-500.0,0.00014273,2]
[353423972,1739823051486,-500.0,0.00014273,2]
[353423974,1739823051496,-405.87,0.00014273,2]
[353423976,1739823051505,-487.65,0.00014273,2]
[353423978,1739823051514,-643.71603217,0.0001428,2]
[353423980,1739823051523,-396.0,0.00014306,2]
[353423982,1739823051532,-150.094,0.00014315,2]
[353423984,1739823051541,-161.278,0.00014315,2]
[353423986,1739823051550,-153.968,0.00014315,2]
[353423988,1739823051559,-231.682,0.00014315,2]
[353423990,1739823051568,-185.082,0.00014315,2]
[353423992,1739823051578,-1971.0,0.00014315,2]
[353423993,1739823051587,-538.0,0.00014315,2]
[353423995,1739823051596,-2293.0,0.00014315,2]
[353423997,1739823051606,-500.0,0.00014356,2]
[353423999,1739823051616,-343.88,0.00014356,2]
[353424002,1739823051626,-840.82,0.00014356,2]
[353424003,1739823051635,-3362.44,0.00014356,2]
[353424005,1739823051644,-500.0,0.00014356,2]
[353424007,1739823051654,-500.0,0.00014356,2]
[353424009,1739823051664,-500.0,0.00014356,2]
[353424011,1739823051673,-500.0,0.00014356,2]
[353424013,1739823051682,-200.2,0.00014356,2]
[353424015,1739823051692,-197.38,0.00014356,2]
[353424017,1739823051701,-679.97,0.00014356,2]
[353424019,1739823051711,-839.18,0.00014356,2]
[353424021,1739823051720,-500.0,0.00014356,2]
[353424023,1739823051730,-3537.41,0.00014356,2]
[353424025,1739823051740,-500.0,0.00014356,2]
[353424027,1739823051750,-1804.24,0.00014356,2]
[353424029,1739823051760,-500.0,0.00014356,2]
[353424031,1739823051769,-500.0,0.00014356,2]
[353424033,1739823051778,-680.55,0.00014356,2]
[353424035,1739823051788,-513.3,0.00014356,2]
[353424037,1739823051797,-500.0,0.00014356,2]
[353424039,1739823051807,-500.0,0.00014356,2]
[353424041,1739823051816,-500.0,0.00014356,2]
[353424043,1739823051826,-507.95,0.00014356,2]
[353424045,1739823051835,-633.58,0.00014356,2]
[353424046,1739823051845,-9462.2,0.00014356,2]
[353424048,1739823051854,-855.8,0.00014356,2]
[353424050,1739823051866,-500.0,0.00014356,2]
[353424052,1739823051875,-500.0,0.00014356,2]
[353424054,1739823051885,-500.0,0.00014356,2]
[353424056,1739823051895,-500.0,0.00014356,2]
[353424058,1739823051904,-643.71603217,0.0001438,2]
[353424060,1739823051914,-469.5,0.00014438,2]
[353424062,1739823051924,-840.82,0.00014438,2]
[353424064,1739823051934,-3362.44,0.00014438,2]
[353424066,1739823051943,-500.0,0.00014438,2]
[353424068,1739823051952,-500.0,0.00014438,2]
[353424070,1739823051963,-500.0,0.00014438,2]
[353424072,1739823051976,-440.34,0.00014438,2]
[353424074,1739823051986,-679.97,0.00014438,2]
[353424076,1739823051996,-839.18,0.00014438,2]
[353424078,1739823052006,-500.0,0.00014438,2]
[353424080,1739823052017,-3537.41,0.00014438,2]
[353424082,1739823052026,-500.0,0.00014438,2]
[353424084,1739823052035,-1804.24,0.00014438,2]
[353424086,1739823052046,-500.0,0.00014438,2]
[353424088,1739823052055,-500.0,0.00014438,2]
[353424090,1739823052064,-680.55,0.00014438,2]
[353424092,1739823052075,-500.0,0.00014438,2]
[353424093,1739823052085,-513.3,0.00014438,2]
[353424095,1739823052094,-500.0,0.00014438,2]
[353424097,1739823052103,-326.14,0.00014438,2]
[353424099,1739823052113,-507.95,0.00014438,2]
[353424101,1739823052122,-633.58,0.00014438,2]
[353424103,1739823052132,-9462.2,0.00014438,2]
[353424105,1739823052141,-855.8,0.00014438,2]
[353424107,1739823052151,-500.0,0.00014438,2]
[353424109,1739823052160,-500.0,0.00014438,2]
[353424111,1739823052170,-530.1,0.00014438,2]
[353424113,1739823052180,-500.0,0.00014438,2]
[353424115,1739823052189,-643.71603217,0.0001448,2]
[353424117,1739823052200,-840.82,0.0001452,2]
[353424119,1739823052209,-3362.44,0.0001452,2]
[353424121,1739823052218,-500.0,0.0001452,2]
[353424123,1739823052228,-500.0,0.0001452,2]
[353424125,1739823052240,-500.0,0.0001452,2]
[353424127,1739823052249,-679.97,0.0001452,2]
[353424129,1739823052259,-839.18,0.0001452,2]
[353424131,1739823052268,-500.0,0.0001452,2]
[353424133,1739823052278,-3537.41,0.0001452,2]
[353424135,1739823052287,-500.0,0.0001452,2]
[353424137,1739823052297,-1804.24,0.0001452,2]
[353424139,1739823052307,-500.0,0.0001452,2]
[353424141,1739823052316,-500.0,0.0001452,2]
[353424143,1739823052326,-680.55,0.0001452,2]
[353424145,1739823052335,-513.3,0.0001452,2]
[353424147,1739823052345,-477.57,0.0001452,2]
[353424149,1739823052355,-500.0,0.0001452,2]
[353424151,1739823052365,-507.95,0.0001452,2]
[353424153,1739823052374,-633.58,0.0001452,2]
[353424155,1739823052384,-9462.2,0.0001452,2]
[353424157,1739823052394,-855.8,0.0001452,2]
[353424159,1739823052405,-500.0,0.0001452,2]
[353424161,1739823052414,-500.0,0.0001452,2]
[353424163,1739823052423,-500.0,0.0001452,2]
[353424165,1739823052433,-643.71603217,0.0001458,2]
[353424167,1739823052443,-1224.0889392,0.00014601,2]
[353424169,1739823052452,-840.82,0.00014602,2]
[353424171,1739823052461,-3362.44,0.00014602,2]
[353424173,1739823052471,-500.0,0.00014602,2]
[353424175,1739823052480,-500.0,0.00014602,2]
[353424177,1739823052490,-500.0,0.00014602,2]
[353424179,1739823052500,-679.97,0.00014602,2]
[353424181,1739823052511,-839.18,0.00014602,2]
[353424182,1739823052521,-500.0,0.00014602,2]
[353424184,1739823052532,-3537.41,0.00014602,2]
[353424186,1739823052542,-500.0,0.00014602,2]
[353424189,1739823052552,-1804.24,0.00014602,2]
[353424191,1739823052562,-552.3,0.00014602,2]
[353424193,1739823052572,-500.0,0.00014602,2]
[353424195,1739823052582,-680.55,0.00014602,2]
[353424197,1739823052592,-513.3,0.00014602,2]
[353424199,1739823052601,-500.0,0.00014602,2]
[353424210,1739823052697,-507.95,0.00014602,2]
[353424212,1739823052707,-633.58,0.00014602,2]
[353424214,1739823052716,-9462.2,0.00014602,2]
[353424216,1739823052726,-855.8,0.00014602,2]
[353424218,1739823052736,-500.0,0.00014602,2]
[353424219,1739823052745,-500.0,0.00014602,2]
[353424221,1739823052754,-500.0,0.00014602,2]
[353424223,1739823052763,-643.71603217,0.0001468,2]
[353424225,1739823052772,-840.82,0.00014684,2]
[353424227,1739823052782,-3362.44,0.00014684,2]
[353424229,1739823052791,-500.0,0.00014684,2]
[353424231,1739823052800,-500.0,0.00014684,2]
[353424233,1739823052810,-500.0,0.00014684,2]
[353424235,1739823052819,-679.97,0.00014684,2]
[353424237,1739823052829,-839.18,0.00014684,2]
[353424239,1739823052839,-500.0,0.00014684,2]
[353424241,1739823052849,-3537.41,0.00014684,2]
[353424243,1739823052858,-500.0,0.00014684,2]
[353424245,1739823052868,-1804.24,0.00014684,2]
[353424247,1739823052878,-514.02,0.00014684,2]
[353424249,1739823052887,-680.55,0.00014684,2]
[353424251,1739823052898,-513.3,0.00014684,2]
[353424253,1739823052907,-500.0,0.00014684,2]
[353424255,1739823052917,-507.95,0.00014684,2]
[353424257,1739823052927,-633.58,0.00014684,2]
[353424259,1739823052937,-9462.2,0.00014684,2]
[353424261,1739823052947,-855.8,0.00014684,2]
[353424263,1739823052957,-571.48,0.00014684,2]
[353424265,1739823052968,-500.0,0.00014684,2]
[353424267,1739823052979,-500.0,0.00014684,2]
[353424269,1739823052990,-840.82,0.00014767,2]
[353424270,1739823053001,-3362.44,0.00014767,2]
[353424272,1739823053011,-457.58,0.00014767,2]
[353424274,1739823053021,-500.0,0.00014767,2]
[353424276,1739823053032,-500.0,0.00014767,2]
[353424278,1739823053044,-679.97,0.00014767,2]
[353424280,1739823053054,-839.18,0.00014767,2]
[353424282,1739823053064,-500.0,0.00014767,2]
[353424284,1739823053074,-3537.41,0.00014767,2]
[353424286,1739823053084,-395.13989193,0.00014767,2]
[353424288,1739823053093,-1804.24,0.00014767,2]
[353424290,1739823053103,-680.55,0.00014767,2]
[353424292,1739823053112,-513.3,0.00014767,2]
[353424294,1739823053122,-520.34,0.00014767,2]
[353424296,1739823053132,-507.95,0.00014767,2]
[353424298,1739823053142,-633.58,0.00014767,2]
[353424300,1739823053152,-9462.2,0.00014767,2]
[353424302,1739823053161,-855.8,0.00014767,2]
[353424304,1739823053170,-500.0,0.00014767,2]
[353424306,1739823053180,-500.0,0.00014767,2]
[353424308,1739823053189,-643.71603217,0.0001478,2]
[353424309,1739823053199,-1594.20532122,0.000148,2]
[353424311,1739823053208,-108749.231784,0.000148,2]
[353424313,1739823053217,-840.82,0.00014849,2]
[353424315,1739823053227,-3362.44,0.00014849,2]
[353424317,1739823053236,-500.0,0.00014849,2]
[353424319,1739823053248,-500.0,0.00014849,2]
[353424321,1739823053257,-679.97,0.00014849,2]